bitfinex-derivatives/quotes_BTCF0:USTF0_20241120
["timestamp","ask_amount","ask_price","bid_price","bid_amount"]
[1732134878262,0.10059877,94349.0,94332.0,0.052948]
[1732134878466,0.55159138,94353.0,94342.0,0.413743]
[1732134878467,0.10059877,94343.0,94342.0,0.413743]
[1732134878664,0.15354077,94343.0,94342.0,0.3608]
[1732134879164,0.052948,94334.0,94333.0,0.052947]
[1732134879652,0.052949,94330.0,94329.0,0.41375]
[1732134879851,0.052949,94330.0,94329.0,0.3608]
[1732134880056,0.15354777,94330.0,94329.0,0.3608]
[1732134880263,0.15354777,94330.0,94326.0,0.052951]
[1732134880460,0.052951,94327.0,94326.0,0.052951]
[1732134880661,0.02599138,94334.0,94331.0,0.052948]
[1732134880662,0.052949,94332.0,94331.0,0.052948]
[1732134880967,0.10059877,94343.0,94324.0,0.052953]
[1732134881262,0.052944,94339.0,94338.0,0.052943]
[1732134883466,0.02506917,94340.0,94339.0,0.052944]
[1732134883657,0.052944,94340.0,94339.0,0.052944]
[1732134883852,0.10059877,94342.0,94334.0,0.3608]
[1732134884068,0.052946,94335.0,94334.0,0.413747]
[1732134884366,0.15354477,94335.0,94334.0,0.413747]
[1732134884554,0.15354477,94335.0,94334.0,0.3608]
[1732134884754,0.15354477,94335.0,94334.0,0.413747]
[1732134885566,0.15354477,94335.0,94334.0,0.3608]
[1732134886064,0.15354477,94335.0,94325.0,0.052952]
[1732134886364,0.052954,94323.0,94321.0,0.0316]
[1732134886557,0.052956,94318.0,94304.0,0.0301]
[1732134886758,0.052956,94318.0,94312.0,0.052959]
[1732134886961,0.052956,94318.0,94314.0,0.052958]
[1732134887159,0.052956,94318.0,94304.0,0.1317]
[1732134887356,0.052962,94310.0,94309.0,0.052961]
[1732134888869,0.052962,94310.0,94304.0,0.0301]
[1732134888870,0.10059877,94320.0,94306.0,0.3608]
[1732134889163,0.052962,94310.0,94309.0,0.052959]
[1732134889368,0.052962,94307.0,94306.0,0.3608]
[1732134890067,0.052963,94306.0,94297.0,0.052968]
[1732134890283,0.3608,94307.0,94290.0,0.3928]
[1732134890478,0.052967,94299.0,94298.0,0.052966]
[1732134890886,0.05297,94294.0,94293.0,0.052969]
[1732134892373,0.10059877,94302.0,94290.0,0.3928]
[1732134892685,0.052971,94296.0,94295.0,0.052968]
[1732134894785,0.052967,94301.0,94300.0,0.052966]
[1732134895782,0.05297,94296.0,94295.0,0.052968]
[1732134897083,0.12710332,94304.0,94290.0,0.3928]
[1732134897382,0.02546332,94304.0,94303.0,0.052964]
[1732134897572,0.05296,94312.0,94311.0,0.052958]
[1732134898179,0.15355577,94316.0,94315.0,0.052958]
[1732134898384,0.07881171,94316.0,94315.0,0.052958]
[1732134899185,0.02585471,94316.0,94315.0,0.052958]
[1732134899387,0.052955,94321.0,94320.0,0.052955]
[1732134900189,0.12805472,94323.0,94316.0,0.0328]
[1732134900395,0.12805472,94323.0,94322.0,0.052954]
[1732134900591,0.00159096,94323.0,94322.0,0.052954]
[1732134900790,0.00159096,94323.0,94322.0,1.552954]
[1732134901383,0.00159096,94323.0,94322.0,0.052954]
[1732134904491,0.052948,94333.0,94332.0,0.052948]
[1732134905080,0.052948,94333.0,94332.0,0.061428]
[1732134905295,0.02559516,94334.0,94333.0,0.052948]
[1732134905497,0.10059877,94345.0,94332.0,0.00848]
[1732134905693,0.052938,94350.0,94349.0,0.052938]
[1732134905890,0.05294,94346.0,94345.0,0.05294]
[1732134906089,0.15353877,94346.0,94345.0,0.05294]
[1732134907790,0.052943,94341.0,94340.0,0.3608]
[1732134908192,0.052943,94341.0,94340.0,0.413744]
[1732134908495,0.052943,94344.0,94343.0,0.052941]
[1732134912096,0.052944,94340.0,94339.0,0.413743]
[1732134912490,0.052944,94340.0,94339.0,0.052943]
[1732134913996,0.052944,94340.0,94332.0,1.63624641]
[1732134913997,0.15354277,94340.0,94332.0,1.53488641]
[1732134914194,0.052948,94336.0,94335.0,0.052946]
[1732134916202,0.052948,94333.0,94332.0,0.08727441]
[1732134916423,0.052948,94333.0,94332.0,0.061428]
[1732134917204,0.052946,94336.0,94335.0,0.052944]
[1732134917798,0.02514254,94340.0,94335.0,0.052944]
[1732134917998,0.052944,94340.0,94339.0,0.052944]
[1732134919212,0.36176001,94344.0,94343.0,0.052942]
[1732134919416,0.05294,94347.0,94346.0,0.05294]
[1732134920210,0.00159062,94352.0,94339.0,0.3608]
[1732134920414,0.052938,94350.0,94349.0,0.052937]
[1732134923926,0.02748879,94352.0,94349.0,0.052937]
[1732134923927,0.02748879,94352.0,94351.0,0.052937]
[1732134924712,0.08042579,94352.0,94351.0,0.052937]
[1732134926615,0.08042579,94352.0,94339.0,0.3608]
[1732134926616,0.02748879,94352.0,94339.0,0.3608]
[1732134926812,0.052944,94343.0,94342.0,0.052942]
[1732134927620,0.052944,94340.0,94339.0,0.413743]
[1732134927811,0.052944,94340.0,94339.0,1.913743]
[1732134928121,0.052944,94340.0,94339.0,1.8608]
[1732134928307,0.052944,94340.0,94339.0,0.3608]
[1732134928508,0.052944,94340.0,94339.0,0.413744]
[1732134929119,0.02748879,94352.0,94349.0,0.052938]
[1732134929120,0.052938,94350.0,94349.0,0.052938]
[1732134929422,0.06316458,94350.0,94349.0,0.052938]
[1732134930012,0.08872636,94350.0,94349.0,0.052938]
[1732134930215,0.02556178,94350.0,94349.0,0.413738]
[1732134930416,0.00159062,94352.0,94349.0,0.3608]
[1732134930624,0.00159062,94352.0,94351.0,0.052937]
[1732134932226,0.02709017,94352.0,94351.0,0.052937]
[1732134932520,0.00159062,94352.0,94351.0,0.052937]
[1732134932923,0.05452762,94352.0,94351.0,0.052937]
[1732134935230,0.06467305,94352.0,94351.0,0.052937]
[1732134935423,0.06467356,94352.0,94351.0,0.052937]
[1732134936019,0.05452762,94352.0,94351.0,0.052937]
[1732134937426,0.06463731,94352.0,94351.0,0.052937]
[1732134937615,0.15512639,94352.0,94351.0,0.052937]
[1732134938019,0.05452762,94352.0,94351.0,0.052937]
[1732134939244,0.00159062,94352.0,94351.0,0.052937]
[1732134941232,0.00159062,94352.0,94351.0,1.552937]
[1732134944732,0.01164318,94352.0,94351.0,1.552937]
[1732134944935,0.00159062,94352.0,94351.0,1.552937]
[1732134945139,0.01165356,94352.0,94351.0,1.552937]
[1732134945532,0.01165356,94352.0,94351.0,1.654057]
[1732134945738,0.01006294,94352.0,94351.0,1.654057]
[1732134947735,0.02586867,94360.0,94351.0,1.60112]
[1732134947936,0.36176001,94364.0,94356.0,0.3608]
[1732134948143,0.3608,94364.0,94363.0,0.052931]
[1732134948441,0.38665788,94364.0,94363.0,0.052931]
[1732134949134,0.43958788,94364.0,94363.0,0.052931]
[1732134949335,0.43958788,94364.0,94363.0,0.05228838]
[1732134949336,0.38665788,94364.0,94363.0,0.05228838]
[1732134950142,0.38665788,94364.0,94363.0,1.55228838]
[1732134950729,0.43958788,94364.0,94363.0,1.55228838]
[1732134950929,0.43958788,94364.0,94363.0,1.5]
[1732134951130,0.052934,94357.0,94356.0,0.3608]
[1732134951346,0.15353277,94357.0,94356.0,0.3608]
[1732134951640,0.15353277,94357.0,94356.0,1.8608]
[1732134952143,0.15353277,94357.0,94356.0,0.3608]
[1732134952734,0.15353277,94357.0,94351.0,1.552937]
[1732134953043,0.15353577,94352.0,94351.0,1.552937]
[1732134953240,0.15353577,94352.0,94351.0,1.5]
[1732134954242,0.052939,94348.0,94347.0,0.05294]
[1732134954450,0.06320832,94348.0,94347.0,0.05294]
[1732134954645,0.10059877,94352.0,94350.0,0.052937]
[1732134954949,0.052938,94351.0,94350.0,0.052937]
[1732134956140,0.05294,94347.0,94346.0,0.00056]
[1732134956338,0.05294,94347.0,94345.0,0.3608]
[1732134956339,0.05294,94346.0,94345.0,0.3608]
[1732134956541,0.22830729,94346.0,94345.0,0.3608]
[1732134956736,0.18563877,94346.0,94345.0,0.3608]
[1732134956940,0.08504,94346.0,94345.0,0.3608]
[1732134957138,0.08504,94346.0,94345.0,0.36927]
[1732134958048,0.06332402,94346.0,94345.0,0.422211]
[1732134958445,0.06332402,94346.0,94345.0,0.061411]
[1732134959149,0.01038402,94346.0,94345.0,0.061411]
[1732134959955,0.0253197,94352.0,94345.0,0.061411]
[1732134959956,0.052939,94349.0,94348.0,0.052939]
[1732134960137,0.052937,94354.0,94353.0,0.052935]
[1732134963145,0.052937,94354.0,94346.0,0.0312]
[1732134963146,0.01040441,94354.0,94346.0,0.0312]
[1732134963454,0.05294,94348.0,94347.0,0.052939]
[1732134963660,0.01040467,94353.0,94345.0,0.00847]
[1732134963846,0.052936,94355.0,94354.0,0.052935]
[1732134964042,0.06334083,94355.0,94354.0,0.052935]
[1732134964950,0.052936,94355.0,94354.0,0.052935]
[1732134965458,0.052936,94355.0,94354.0,0.413735]
[1732134965955,0.06330769,94355.0,94354.0,0.413735]
[1732134966156,0.052936,94355.0,94354.0,0.413735]
[1732134966567,0.05839827,94361.0,94354.0,0.3608]
[1732134966856,0.06330092,94360.0,94359.0,0.052932]
[1732134967248,0.052933,94360.0,94359.0,0.052932]
[1732134967854,0.06332275,94360.0,94359.0,0.052932]
[1732134968055,0.052935,94355.0,94354.0,0.413735]
[1732134970557,0.052935,94355.0,94354.0,0.052935]
[1732134970751,0.06325943,94355.0,94354.0,0.052935]
[1732134971147,0.07358387,94355.0,94354.0,0.052935]
[1732134971847,0.02070354,94355.0,94354.0,0.052935]
[1732134972256,0.01032443,94355.0,94354.0,0.052935]
[1732134972847,0.01032443,94355.0,94354.0,0.083835]
[1732134973243,0.12205045,94380.0,94354.0,0.0309]
[1732134973454,0.12205045,94380.0,94369.0,0.413727]
[1732134973849,0.05451691,94370.0,94369.0,0.413727]
[1732134975353,0.05451691,94370.0,94369.0,0.3608]
[1732134975855,0.052931,94366.0,94365.0,0.05293]
[1732134976157,0.052931,94362.0,94361.0,0.0312]
[1732134976359,0.052931,94362.0,94361.0,0.084132]
[1732134976858,0.052931,94362.0,94361.0,0.444932]
[1732134978566,0.052931,94362.0,94361.0,0.413732]
[1732134978763,0.052931,94362.0,94361.0,0.3608]
[1732134979060,0.15352977,94362.0,94361.0,0.3608]
[1732134979458,0.052937,94351.0,94350.0,0.052938]
[1732134980052,0.052937,94351.0,94350.0,0.052438]
[1732134980662,0.052937,94351.0,94346.0,0.05294]
[1732134980663,0.052941,94347.0,94346.0,0.05294]
[1732134981473,0.052938,94353.0,94352.0,0.052935]
[1732134981765,0.052934,94360.0,94359.0,0.052932]
[1732134983560,0.413734,94360.0,94359.0,0.052932]
[1732134984161,0.052936,94355.0,94354.0,0.052935]
[1732134984358,0.052936,94353.0,94352.0,0.413737]
[1732134984657,0.38293094,94360.0,94352.0,0.413737]
[1732134984658,0.38293094,94360.0,94352.0,0.3608]
[1732134984865,0.052935,94356.0,94355.0,0.052934]
[1732134985457,0.06306951,94356.0,94355.0,0.052934]
[1732134986861,0.01014339,94356.0,94355.0,0.052934]
[1732134987062,0.00096001,94360.0,94359.0,0.052933]
[1732134987267,0.02605784,94365.0,94364.0,0.05293]
[1732134987466,0.052928,94369.0,94364.0,0.46139877]
[1732134987764,0.052928,94369.0,94368.0,0.052928]
[1732134987965,0.11454883,94369.0,94368.0,0.052928]
[1732134988558,0.10438085,94369.0,94368.0,0.052928]
[1732134989265,0.11453596,94369.0,94368.0,0.052928]
[1732134989764,0.11453616,94369.0,94368.0,0.052928]
[1732134990161,0.06308311,94369.0,94368.0,0.052928]
[1732134990474,0.01015511,94369.0,94368.0,0.052928]
[1732134990974,0.02747976,94370.0,94369.0,0.052927]
[1732134991177,0.03771042,94370.0,94369.0,0.052927]
[1732134992072,0.09063742,94370.0,94369.0,0.052927]
[1732134994581,0.03771042,94370.0,94369.0,0.052927]
[1732134994768,0.02747976,94370.0,94369.0,0.052927]
[1732134995072,0.00159007,94370.0,94369.0,0.052927]
[1732134996168,0.19014995,94388.0,94387.0,0.052917]
[1732134996469,0.01013911,94388.0,94387.0,0.40323525]
[1732134996667,0.19014995,94401.0,94387.0,0.35031825]
[1732134996867,0.052913,94395.0,94394.0,0.052912]
[1732134997262,0.12594212,94400.0,94399.0,0.052911]
[1732134997461,0.0579,94419.0,94399.0,0.51430977]
[1732134997462,0.005,94419.0,94399.0,0.51430977]
[1732134997664,0.01037988,94400.0,94399.0,0.413711]
[1732134997874,0.02767269,94421.0,94420.0,0.052899]
[1732134998075,0.03833494,94421.0,94420.0,0.413699]
[1732134998378,0.02767269,94421.0,94420.0,0.413699]
[1732134998577,0.02458183,94421.0,94420.0,0.3608]
[1732134998877,0.01090914,94421.0,94420.0,0.3608]
[1732134999571,0.052898,94422.0,94420.0,0.3608]
[1732134999976,0.0107176,94421.0,94420.0,0.3608]
[1732135000674,0.01076807,94421.0,94420.0,0.3608]
[1732135001267,0.05671861,94431.0,94421.0,0.052898]
[1732135001268,0.052893,94430.0,94421.0,0.052898]
[1732135001472,0.052893,94430.0,94420.0,0.3608]
[1732135001473,0.06378743,94429.0,94424.0,0.10059877]
[1732135001672,0.032,94440.0,94428.0,0.3608]
[1732135001978,0.052891,94434.0,94428.0,0.3608]
[1732135002279,0.052889,94439.0,94431.0,0.3608]
[1732135002464,0.10059877,94453.0,94431.0,0.3608]
[1732135002465,0.0634,94448.0,94432.0,0.032]
[1732135002670,0.052887,94441.0,94440.0,0.3608]
[1732135003071,0.052887,94441.0,94432.0,0.032]
[1732135003072,0.052884,94447.0,94432.0,0.3928]
[1732135003273,0.0634,94448.0,94432.0,0.3928]
[1732135003466,0.052891,94433.0,94432.0,0.3928]
[1732135003783,0.052888,94439.0,94434.0,0.052891]
[1732135004082,0.052891,94434.0,94432.0,0.3608]
[1732135004271,0.0333,94438.0,94418.0,0.10059877]
[1732135004464,0.052896,94425.0,94424.0,0.10059877]
[1732135004969,0.052899,94420.0,94419.0,0.10064]
[1732135005475,0.052897,94423.0,94420.0,0.052899]
[1732135005677,0.052897,94423.0,94419.0,0.10064]
[1732135005874,0.052897,94423.0,94421.0,0.052898]
[1732135006673,0.3608,94434.0,94418.0,0.10059877]
[1732135006871,0.052899,94419.0,94418.0,0.20123877]
[1732135007376,0.0529,94417.0,94416.0,0.3608]
[1732135007775,0.052898,94422.0,94421.0,0.052898]
[1732135007969,0.0529,94417.0,94416.0,0.3608]
[1732135009081,0.0529,94417.0,94408.0,0.3608]
[1732135009082,0.052905,94410.0,94408.0,0.3608]
[1732135009277,0.052905,94410.0,94395.0,0.3608]
[1732135009278,0.10059877,94409.0,94395.0,0.3608]
[1732135009584,0.052912,94396.0,94388.0,0.413717]
[1732135010074,0.052913,94395.0,94388.0,0.413717]
[1732135010270,0.3608,94395.0,94376.0,0.3608]
[1732135010471,0.052929,94366.0,94365.0,0.3608]
[1732135010777,0.052918,94386.0,94362.0,0.02609346]
[1732135010778,0.052931,94363.0,94362.0,0.02609346]
[1732135010980,0.052931,94363.0,94361.0,0.07408828]
[1732135010981,0.052931,94363.0,94361.0,0.02115628]
[1732135011176,0.00013013,94362.0,94361.0,0.02115628]
[1732135011378,0.052932,94361.0,94359.0,0.10064]
[1732135011771,0.00013013,94362.0,94358.0,0.052933]
[1732135011970,0.00013013,94362.0,94358.0,0.10064]
[1732135012170,0.00013013,94362.0,94354.0,0.10064]
[1732135012478,0.10059877,94358.0,94348.0,0.052939]
[1732135012680,0.10059877,94358.0,94347.0,0.00013065]
[1732135012681,0.052938,94351.0,94347.0,0.00013065]
[1732135012891,0.052939,94348.0,94347.0,0.00013065]
[1732135013179,0.3608,94351.0,94328.0,0.10064]
[1732135013382,0.3608,94351.0,94324.0,0.10064]
[1732135013383,0.052951,94327.0,94324.0,0.10064]
[1732135013596,0.052951,94327.0,94322.0,0.46144]
[1732135013967,0.052952,94326.0,94322.0,0.3608]
[1732135014168,0.052953,94324.0,94322.0,0.3608]
[1732135014379,0.052953,94324.0,94314.0,0.413758]
[1732135014380,0.10059877,94323.0,94315.0,0.3608]
[1732135014578,0.02570845,94327.0,94315.0,0.3608]
[1732135014579,0.15355577,94316.0,94315.0,0.3608]
[1732135014783,0.10059877,94316.0,94315.0,0.3608]
[1732135014971,0.00010156,94322.0,94308.0,0.00010411]
[1732135014972,0.10070033,94322.0,94308.0,0.00010411]
[1732135015170,0.10059877,94309.0,94308.0,0.00010411]
[1732135015569,0.10059877,94309.0,94308.0,0.00858411]
[1732135016882,0.02613453,94310.0,94308.0,0.00858411]
[1732135017086,0.3608,94331.0,94309.0,0.46139877]
[1732135017276,0.3608,94331.0,94321.0,0.052954]
[1732135017474,0.3608,94331.0,94309.0,0.3608]
[1732135017475,0.052958,94315.0,94309.0,0.3608]
[1732135017682,0.05296,94310.0,94308.0,0.00858411]
[1732135017984,0.15355877,94310.0,94308.0,0.00858411]
[1732135018878,0.53986009,94310.0,94308.0,0.00858411]
[1732135019086,0.15356477,94301.0,94300.0,0.1]
[1732135019287,0.51436477,94301.0,94300.0,0.1]
[1732135020291,0.38730132,94310.0,94300.0,0.1]
[1732135020292,0.052964,94304.0,94300.0,0.152966]
[1732135020476,0.052961,94310.0,94300.0,0.1]
[1732135020672,0.052962,94308.0,94304.0,0.052964]
[1732135020884,0.02565035,94317.0,94307.0,0.10059877]
[1732135021191,0.052961,94310.0,94302.0,0.3608]
[1732135021384,0.10059877,94321.0,94300.0,0.1]
[1732135021385,0.052958,94316.0,94301.0,0.3608]
[1732135021585,0.20131877,94321.0,94309.0,0.052961]
[1732135021787,0.02277338,94320.0,94315.0,0.052957]
[1732135021989,0.00159116,94320.0,94302.0,0.3608]
[1732135022183,0.10059877,94318.0,94302.0,0.3608]
[1732135022386,0.052962,94308.0,94302.0,0.3608]
[1732135022688,0.10059877,94318.0,94312.0,0.052959]
[1732135022886,0.3608,94315.0,94306.0,0.052962]
[1732135023385,0.052962,94308.0,94306.0,0.052962]
[1732135023587,0.10059877,94310.0,94300.0,0.1]
[1732135023890,0.052966,94302.0,94300.0,0.1]
[1732135024393,0.052961,94309.0,94300.0,0.1]
[1732135024691,0.10059877,94310.0,94300.0,0.152966]
[1732135024886,0.052966,94302.0,94300.0,0.1]
[1732135026387,0.052966,94301.0,94300.0,0.0995]
[1732135026981,0.20671097,94301.0,94300.0,0.0995]
[1732135027381,0.15374497,94301.0,94285.0,0.413775]
[1732135027776,0.052974,94287.0,94285.0,0.413775]
[1732135027980,0.052974,94287.0,94285.0,0.3608]
[1732135028178,0.15374497,94292.0,94276.0,8.393e-05]
[1732135028383,0.052979,94277.0,94276.0,8.393e-05]
[1732135028578,0.05307389,94277.0,94276.0,8.393e-05]
[1732135030689,0.05307389,94277.0,94276.0,0.05306393]
[1732135030888,9.489e-05,94277.0,94276.0,0.05306393]
[1732135031499,0.413768,94297.0,94276.0,0.37126393]
[1732135031500,0.3608,94297.0,94276.0,0.37126393]
[1732135031687,0.3608,94297.0,94296.0,0.052968]
[1732135031990,0.3608,94310.0,94290.0,0.15374497]
[1732135031991,0.052962,94307.0,94306.0,0.052962]
[1732135032384,0.052957,94316.0,94315.0,0.052957]
[1732135032593,0.05306614,94316.0,94315.0,0.052957]
[1732135032780,0.00010914,94316.0,94315.0,0.052957]
[1732135032984,0.00010914,94316.0,94315.0,0.413757]
[1732135034185,0.00010914,94316.0,94315.0,0.514397]
[1732135034585,0.00010914,94316.0,94315.0,0.5466186]
[1732135035792,0.3608,94340.0,94334.0,0.052947]
[1732135036092,0.3608,94340.0,94339.0,0.052944]
[1732135036286,0.3608,94349.0,94348.0,0.052939]
[1732135036690,0.36093764,94349.0,94348.0,0.052939]
[1732135038306,0.052942,94343.0,94342.0,0.052942]
[1732135039199,0.052945,94338.0,94336.0,0.052945]
[1732135039386,0.052945,94338.0,94321.0,0.3608]
[1732135039387,0.3608,94338.0,94321.0,0.3608]
[1732135039584,0.052948,94332.0,94330.0,0.052949]
[1732135039800,0.052942,94343.0,94341.0,0.052943]
[1732135040097,0.01127174,94342.0,94341.0,0.052943]
[1732135041103,0.01127174,94342.0,94335.0,0.052946]
[1732135041293,0.01127174,94342.0,94329.0,0.3608]
[1732135041294,0.37207174,94341.0,94329.0,0.25491498]
[1732135041488,0.01127174,94340.0,94329.0,0.25491498]
[1732135041686,0.01127174,94339.0,94338.0,0.052944]
[1732135042001,0.02938994,94339.0,94306.0,0.3608]
[1732135042203,0.15374497,94315.0,94307.0,0.052962]
[1732135042394,0.052958,94315.0,94311.0,0.052959]
[1732135042595,0.3608,94318.0,94306.0,0.3608]
[1732135042791,0.052955,94320.0,94315.0,0.052958]
[1732135043101,0.1006,94326.0,94306.0,0.3608]
[1732135043102,0.3608,94319.0,94306.0,0.3608]
[1732135043290,0.052956,94318.0,94306.0,0.3608]
[1732135043486,0.052956,94318.0,94313.0,0.052959]
[1732135043693,0.052956,94318.0,94306.0,0.3608]
[1732135043694,0.3608,94327.0,94326.0,0.052951]
[1732135043891,0.37202232,94327.0,94326.0,0.052951]
[1732135044499,0.3608,94327.0,94326.0,0.052951]
[1732135044686,0.01119587,94327.0,94319.0,0.1006]
[1732135044889,0.01119587,94326.0,94325.0,0.052952]
[1732135045496,0.01119587,94326.0,94325.0,0.413752]
[1732135045901,0.01119587,94326.0,94325.0,0.052952]
[1732135046699,0.05295,94328.0,94325.0,0.052952]
[1732135046890,0.01111935,94326.0,94325.0,0.052952]
[1732135047092,0.05295,94328.0,94325.0,0.052952]
[1732135047296,0.39347794,94339.0,94323.0,0.3608]
[1732135047495,0.3608,94324.0,94318.0,0.1006]
[1732135047695,0.01111935,94323.0,94312.0,0.052959]
[1732135048095,0.052956,94318.0,94311.0,0.1006]
[1732135048404,0.052956,94318.0,94314.0,0.052958]
[1732135048598,0.3608,94324.0,94312.0,0.3608]
[1732135048900,0.052954,94322.0,94312.0,0.3608]
[1732135049201,0.3608,94324.0,94315.0,0.052957]
[1732135049202,0.052957,94316.0,94315.0,0.052957]
[1732135049397,0.3608,94324.0,94311.0,0.1006]
[1732135049398,0.052959,94312.0,94311.0,0.1006]
[1732135049901,0.052959,94312.0,94311.0,0.15356]
[1732135050099,0.052957,94317.0,94314.0,0.052958]
[1732135050303,0.15374497,94321.0,94314.0,0.052958]
[1732135050496,0.15374497,94321.0,94311.0,0.1006]
[1732135050497,0.15374497,94321.0,94315.0,0.00765]
[1732135050696,0.052957,94316.0,94315.0,0.00765]
[1732135051297,0.052957,94316.0,94315.0,6.579e-05]
[1732135061222,0.052957,94316.0,94301.0,0.03170966]
[1732135061223,0.052965,94302.0,94292.0,0.0006]
[1732135061399,0.052979,94277.0,94271.0,0.052982]
[1732135061599,0.052979,94277.0,94276.0,0.05306393]
[1732135061799,0.052977,94281.0,94280.0,0.052977]
[1732135062110,0.3608,94293.0,94276.0,8.393e-05]
[1732135062510,0.052968,94296.0,94292.0,0.052971]
[1732135062813,0.052963,94306.0,94305.0,0.052963]
[1732135063008,0.03169262,94310.0,94301.0,0.052965]
[1732135063204,0.3608,94313.0,94302.0,0.3608]
[1732135063415,0.413759,94313.0,94302.0,0.51454497]
[1732135063711,0.3608,94313.0,94303.0,0.0323]
[1732135063908,0.3608,94322.0,94303.0,0.0323]
[1732135063909,0.052961,94310.0,94303.0,0.0323]
[1732135064097,0.052961,94310.0,94309.0,0.052961]
[1732135064298,0.052958,94314.0,94305.0,0.10224]
[1732135064507,0.052958,94314.0,94313.0,0.052959]
[1732135064917,0.052956,94319.0,94314.0,0.052958]
[1732135065217,0.052956,94319.0,94314.0,0.371038]
[1732135066011,0.3608,94322.0,94314.0,0.371038]
[1732135066207,0.052956,94318.0,94314.0,0.371038]
[1732135066409,0.3608,94322.0,94314.0,0.371038]
[1732135066616,0.413754,94322.0,94314.0,0.371038]
[1732135066814,0.3608,94325.0,94314.0,0.731838]
[1732135067417,0.0049,94332.0,94331.0,0.052949]
[1732135067619,0.0015909,94335.0,94334.0,0.052947]
[1732135067914,0.08707347,94335.0,94334.0,0.052947]
[1732135068103,0.08707347,94335.0,94331.0,0.10224]
[1732135068104,0.052948,94332.0,94331.0,0.155189]
[1732135068304,0.0545379,94335.0,94334.0,0.052947]
[1732135068515,0.052948,94332.0,94331.0,0.10224]
[1732135069009,0.052948,94332.0,94331.0,0.155189]
[1732135069210,0.00166896,94335.0,94331.0,0.10224]
[1732135069401,0.052948,94332.0,94331.0,0.052947]
[1732135069712,0.03293896,94335.0,94323.0,1.5]
[1732135070013,0.052949,94331.0,94330.0,0.052949]
[1732135070206,0.064668,94331.0,94330.0,0.052949]
[1732135070612,0.052949,94331.0,94330.0,0.052949]
[1732135071007,0.03293896,94335.0,94323.0,1.50056]
[1732135071212,0.05461496,94335.0,94334.0,0.052947]
[1732135071908,0.08546634,94335.0,94334.0,0.052947]
[1732135072412,0.05295,94330.0,94329.0,0.05295]
[1732135072617,0.06481591,94330.0,94329.0,0.05295]
[1732135073009,0.08507943,94330.0,94329.0,0.05295]
[1732135073205,0.03212943,94330.0,94329.0,0.05295]
[1732135074911,0.08507843,94330.0,94329.0,0.05295]
[1732135075617,0.08507843,94330.0,94329.0,0.052944]
[1732135076015,0.03212943,94330.0,94329.0,0.052944]
[1732135076319,0.03212943,94330.0,94329.0,0.155184]
[1732135078716,0.03307536,94330.0,94329.0,0.155184]
[1732135079223,0.052931,94354.0,94349.0,0.052933]
[1732135079520,0.00159049,94355.0,94354.0,0.05293]
[1732135079713,0.05292,94373.0,94355.0,0.05293]
[1732135079714,0.0049,94373.0,94355.0,0.05293]
[1732135079908,0.00661528,94372.0,94369.0,0.052922]
[1732135080115,0.06415003,94380.0,94367.0,0.15362661]
[1732135080321,0.00661503,94379.0,94375.0,0.15362661]
[1732135080513,0.00661503,94378.0,94377.0,0.052917]
[1732135081223,0.052913,94385.0,94380.0,0.052916]
[1732135081541,0.052913,94385.0,94377.0,0.3608]
[1732135081542,0.052914,94383.0,94381.0,0.1022]
[1732135084519,0.052915,94382.0,94381.0,0.155115]
[1732135084726,0.052915,94382.0,94381.0,0.463]
[1732135086733,0.052915,94382.0,94377.0,0.03146555]
[1732135086734,0.052916,94379.0,94378.0,0.10636]
[1732135087025,0.05292,94372.0,94371.0,0.052921]
[1732135087420,0.052922,94370.0,94369.0,0.3608]
[1732135087614,0.052922,94370.0,94369.0,0.46716]
[1732135088119,0.052922,94370.0,94369.0,0.520082]
[1732135088927,0.05292,94373.0,94370.0,0.052921]
[1732135089113,0.052921,94372.0,94371.0,0.052921]
[1732135090029,0.052922,94370.0,94369.0,0.39310112]
[1732135090225,0.052922,94370.0,94369.0,0.46716]
[1732135091014,0.39341587,94379.0,94369.0,0.46716]
[1732135091215,0.05292,94375.0,94374.0,0.052918]
[1732135091916,0.06583039,94375.0,94374.0,0.052918]
[1732135092128,0.06583017,94375.0,94374.0,0.052918]
[1732135092722,0.052922,94370.0,94369.0,0.4678]
[1732135092919,0.052922,94370.0,94363.0,0.0316294]
[1732135092920,0.7117681,94370.0,94359.0,8.55e-05]
[1732135093222,0.7117681,94370.0,94335.0,0.3608]
[1732135093223,0.46131977,94360.0,94335.0,0.3608]
[1732135093532,0.46131977,94360.0,94347.0,0.10051977]
[1732135093533,0.03356656,94359.0,94347.0,0.10051977]
[1732135093721,0.01297528,94358.0,94355.0,0.05293]
[1732135093919,0.01297528,94357.0,94356.0,0.052929]
[1732135094119,0.05300619,94357.0,94356.0,0.052929]
[1732135094629,0.01295657,94357.0,94356.0,0.052929]
[1732135095730,0.01305219,94357.0,94356.0,0.052929]
[1732135096225,0.01305219,94357.0,94356.0,0.20645191]
[1732135096431,0.0049,94375.0,94374.0,0.052919]
[1732135096638,0.0049,94375.0,94374.0,0.159279]
[1732135096639,0.02089995,94375.0,94374.0,0.159279]
[1732135096822,0.052916,94381.0,94380.0,0.052915]
[1732135097023,0.0738148,94381.0,94380.0,0.052915]
[1732135097222,0.39287965,94392.0,94375.0,0.0321]
[1732135097426,0.39287965,94392.0,94385.0,0.052913]
[1732135097427,0.052913,94386.0,94385.0,0.052913]
[1732135097626,0.07363696,94386.0,94385.0,0.052913]
[1732135098742,0.052913,94386.0,94385.0,0.052913]
[1732135099032,0.052913,94386.0,94381.0,0.052915]
[1732135099033,0.052915,94382.0,94381.0,0.052915]
[1732135099228,0.052915,94382.0,94376.0,0.0314]
[1732135099229,0.3608,94383.0,94376.0,0.0314]
[1732135099419,0.39287965,94392.0,94391.0,0.05291]
[1732135099420,0.03207965,94392.0,94391.0,0.05291]
[1732135099627,0.1,94400.0,94390.0,0.25988291]
[1732135099926,0.1,94400.0,94399.0,0.052905]